{"text_format":"1","workbook":"xlsx","n_sheets":7,"sheets":["ロングランニング","30ｍシャトルリレー","エイトマン","短なわレディＧＯ","ドッジラリー","馬とび","設定シート"],"not_rendered":{"charts":0,"images":0,"macros":1,"external_links":0,"defined_names":0,"comments":0,"pivot_tables":0},"unopened":[],"bounds":{"document_bytes":16777216,"sheet_cells":100000,"rows_first":2000,"rows_last":500,"rows_between":2000,"halvings":0,"cell_chars":16384,"cell_head_chars":4096},"cells_cut":0,"cells_raw":0,"read":"whole","date_system":"1900"}

{"sheet":"ロングランニング","index":0,"n_rows":54,"n_cols":13,"rows_kept":54,"cut":false,"hidden":false,"merged":[[0,0,0,5],[2,0,2,5]]}
["目指せ！やまなしチャンピオン！結果入力表"]
[]
["ロングランニング",null,null,null,null,null,"重複チェック"]
["学年","組","学校名","チーム名","記録","実施日"]
[null,null,null,null,null,null,{"$f":"IF(M5<>\"\",IF(COUNTIF($M$5:$M$54,M5)>1,\"●\",\"\"),\"\")","v":""},null,null,null,null,null,{"$f":"A5&B5&C5&D5&F5","v":""}]
[null,null,null,null,null,null,{"$f":"IF(M6<>\"\",IF(COUNTIF($M$5:$M$54,M6)>1,\"●\",\"\"),\"\")","v":""},null,null,null,null,null,{"$f":"A6&B6&C6&D6&F6","v":""}]
[null,null,null,null,null,null,"",null,null,null,null,null,""]
[null,null,null,null,null,null,"",null,null,null,null,null,""]
[null,null,null,null,null,null,"",null,null,null,null,null,""]
[null,null,null,null,null,null,"",null,null,null,null,null,""]
[null,null,null,null,null,null,"",null,null,null,null,null,""]
[null,null,null,null,null,null,"",null,null,null,null,null,""]
[null,null,null,null,null,null,"",null,null,null,null,null,""]
[null,null,null,null,null,null,"",null,null,null,null,null,""]
[null,null,null,null,null,null,"",null,null,null,null,null,""]
[null,null,null,null,null,null,"",null,null,null,null,null,""]
[null,null,null,null,null,null,"",null,null,null,null,null,""]
[null,null,null,null,null,null,"",null,null,null,null,null,""]
[null,null,null,null,null,null,"",null,null,null,null,null,""]
[null,null,null,null,null,null,"",null,null,null,null,null,""]
[null,null,null,null,null,null,"",null,null,null,null,null,""]
[null,null,null,null,null,null,"",null,null,null,null,null,""]
[null,null,null,null,null,null,"",null,null,null,null,null,""]
[null,null,null,null,null,null,"",null," ",null,null,null,""]
[null,null,null,null,null,null,"",null,null,null,null,null,""]
[null,null,null,null,null,null,"",null,null,null,null,null,""]
[null,null,null,null,null,null,"",null,null,null,null,null,""]
[null,null,null,null,null,null,"",null,null,null,null,null,""]
[null,null,null,null,null,null,"",null,null,null,null,null,""]
[null,null,null,null,null,null,"",null,null,null,null,null,""]
[null,null,null,null,null,null,"",null,null,null,null,null,""]
[null,null,null,null,null,null,"",null,null,null,null,null,""]
[null,null,null,null,null,null,"",null,null,null,null,null,""]
[null,null,null,null,null,null,"",null,null,null,null,null,""]
[null,null,null,null,null,null,"",null,null,null,null,null,""]
[null,null,null,null,null,null,"",null,null,null,null,null,""]
[null,null,null,null,null,null,"",null,null,null,null,null,""]
[null,null,null,null,null,null,"",null,null,null,null,null,""]
[null,null,null,null,null,null,"",null,null,null,null,null,""]
[null,null,null,null,null,null,"",null,null,null,null,null,""]
[null,null,null,null,null,null,"",null,null,null,null,null,""]
[null,null,null,null,null,null,"",null,null,null,null,null,""]
[null,null,null,null,null,null,"",null,null,null,null,null,""]
[null,null,null,null,null,null,"",null,null,null,null,null,""]
[null,null,null,null,null,null,"",null,null,null,null,null,""]
[null,null,null,null,null,null,"",null,null,null,null,null,""]
[null,null,null,null,null,null,"",null,null,null,null,null,""]
[null,null,null,null,null,null,"",null,null,null,null,null,{"$f":"A48&B48&C48&D48&F48","v":""}]
[null,null,null,null,null,null,"",null,null,null,null,null,""]
[null,null,null,null,null,null,"",null,null,null,null,null,""]
[null,null,null,null,null,null,"",null,null,null,null,null,""]
[null,null,null,null,null,null,"",null,null,null,null,null,""]
[null,null,null,null,null,null,"",null,null,null,null,null,""]
[null,null,null,null,null,null,"",null,null,null,null,null,""]

{"sheet":"30ｍシャトルリレー","index":1,"n_rows":54,"n_cols":13,"rows_kept":54,"cut":false,"hidden":false,"merged":[[0,0,0,5],[2,0,2,5]]}
["目指せ！やまなしチャンピオン！結果入力表"]
[]
["30ｍシャトルリレー",null,null,null,null,null,"重複チェック"]
["学年","組","学校名","チーム名","記録","実施日"]
[null,null,null,null,null,null,{"$f":"IF(M5<>\"\",IF(COUNTIF($M$5:$M$54,M5)>1,\"●\",\"\"),\"\")","v":""},null,null,null,null,null,{"$f":"A5&B5&C5&D5&F5","v":""}]
[null,null,null,null,null,null,{"$f":"IF(M6<>\"\",IF(COUNTIF($M$5:$M$54,M6)>1,\"●\",\"\"),\"\")","v":""},null,null,null,null,null,{"$f":"A6&B6&C6&D6&F6","v":""}]
[null,null,null,null,null,null,"",null,null,null,null,null,""]
[null,null,null,null,null,null,"",null,null,null,null,null,""]
[null,null,null,null,null,null,"",null,null,null,null,null,""]
[null,null,null,null,null,null,"",null,null,null,null,null,""]
[null,null,null,null,null,null,"",null,null,null,null,null,""]
[null,null,null,null,null,null,"",null,null,null,null,null,""]
[null,null,null,null,null,null,"",null,null,null,null,null,""]
[null,null,null,null,null,null,"",null,null,null,null,null,""]
[null,null,null,null,null,null,"",null,null,null,null,null,""]
[null,null,null,null,null,null,"",null,null,null,null,null,""]
[null,null,null,null,null,null,"",null,null,null,null,null,""]
[null,null,null,null,null,null,"",null,null,null,null,null,""]
[null,null,null,null,null,null,"",null,null,null,null,null,""]
[null,null,null,null,null,null,"",null,null,null,null,null,""]
[null,null,null,null,null,null,"",null,null,null,null,null,""]
[null,null,null,null,null,null,"",null,null,null,null,null,""]
[null,null,null,null,null,null,"",null,null,null,null,null,""]
[null,null,null,null,null,null,"",null,null,null,null,null,""]
[null,null,null,null,null,null,"",null,null,null,null,null,""]
[null,null,null,null,null,null,"",null,null,null,null,null,""]
[null,null,null,null,null,null,"",null,null,null,null,null,""]
[null,null,null,null,null,null,"",null,null,null,null,null,""]
[null,null,null,null,null,null,"",null,null,null,null,null,""]
[null,null,null,null,null,null,"",null,null,null,null,null,""]
[null,null,null,null,null,null,"",null,null,null,null,null,""]
[null,null,null,null,null,null,"",null,null,null,null,null,""]
[null,null,null,null,null,null,"",null,null,null,null,null,""]
[null,null,null,null,null,null,"",null,null,null,null,null,""]
[null,null,null,null,null,null,"",null,null,null,null,null,""]
[null,null,null,null,null,null,"",null,null,null,null,null,""]
[null,null,null,null,null,null,"",null,null,null,null,null,""]
[null,null,null,null,null,null,"",null,null,null,null,null,""]
[null,null,null,null,null,null,"",null,null,null,null,null,""]
[null,null,null,null,null,null,"",null,null,null,null,null,""]
[null,null,null,null,null,null,"",null,null,null,null,null,""]
[null,null,null,null,null,null,"",null,null,null,null,null,""]
[null,null,null,null,null,null,"",null,null,null,null,null,""]
[null,null,null,null,null,null,"",null,null,null,null,null,""]
[null,null,null,null,null,null,"",null,null,null,null,null,""]
[null,null,null,null,null,null,"",null,null,null,null,null,""]
[null,null,null,null,null,null,"",null,null,null,null,null,""]
[null,null,null,null,null,null,"",null,null,null,null,null,""]
[null,null,null,null,null,null,"",null,null,null,null,null,""]
[null,null,null,null,null,null,"",null,null,null,null,null,""]
[null,null,null,null,null,null,"",null,null,null,null,null,""]
[null,null,null,null,null,null,"",null,null,null,null,null,""]
[null,null,null,null,null,null,"",null,null,null,null,null,""]
[null,null,null,null,null,null,"",null,null,null,null,null,""]

{"sheet":"エイトマン","index":2,"n_rows":54,"n_cols":13,"rows_kept":54,"cut":false,"hidden":false,"merged":[[0,0,0,5],[2,0,2,5]]}
["目指せ！やまなしチャンピオン！結果入力表"]
[]
["エイトマン",null,null,null,null,null,"重複チェック"]
["学年","組","学校名","チーム名","記録","実施日"]
[null,null,null,null,null,null,{"$f":"IF(M5<>\"\",IF(COUNTIF($M$5:$M$54,M5)>1,\"●\",\"\"),\"\")","v":""},null,null,null,null,null,{"$f":"A5&B5&C5&D5&F5","v":""}]
[null,null,null,null,null,null,{"$f":"IF(M6<>\"\",IF(COUNTIF($M$5:$M$54,M6)>1,\"●\",\"\"),\"\")","v":""},null,null,null,null,null,{"$f":"A6&B6&C6&D6&F6","v":""}]
[null,null,null,null,null,null,"",null,null,null,null,null,""]
[null,null,null,null,null,null,"",null,null,null,null,null,""]
[null,null,null,null,null,null,"",null,null,null,null,null,""]
[null,null,null,null,null,null,"",null,null,null,null,null,""]
[null,null,null,null,null,null,"",null,null,null,null,null,""]
[null,null,null,null,null,null,"",null,null,null,null,null,""]
[null,null,null,null,null,null,"",null,null,null,null,null,""]
[null,null,null,null,null,null,"",null,null,null,null,null,""]
[null,null,null,null,null,null,"",null,null,null,null,null,""]
[null,null,null,null,null,null,"",null,null,null,null,null,""]
[null,null,null,null,null,null,"",null,null,null,null,null,""]
[null,null,null,null,null,null,"",null,null,null,null,null,""]
[null,null,null,null,null,null,"",null,null,null,null,null,""]
[null,null,null,null,null,null,"",null,null,null,null,null,""]
[null,null,null,null,null,null,"",null,null,null,null,null,""]
[null,null,null,null,null,null,"",null,null,null,null,null,""]
[null,null,null,null,null,null,"",null,null,null,null,null,""]
[null,null,null,null,null,null,"",null,null,null,null,null,""]
[null,null,null,null,null,null,"",null,null,null,null,null,""]
[null,null,null,null,null,null,"",null,null,null,null,null,""]
[null,null,null,null,null,null,"",null,null,null,null,null,""]
[null,null,null,null,null,null,"",null,null,null,null,null,""]
[null,null,null,null,null,null,"",null,null,null,null,null,""]
[null,null,null,null,null,null,"",null,null,null,null,null,""]
[null,null,null,null,null,null,"",null,null,null,null,null,""]
[null,null,null,null,null,null,"",null,null,null,null,null,""]
[null,null,null,null,null,null,"",null,null,null,null,null,""]
[null,null,null,null,null,null,"",null,null,null,null,null,""]
[null,null,null,null,null,null,"",null,null,null,null,null,""]
[null,null,null,null,null,null,"",null,null,null,null,null,""]
[null,null,null,null,null,null,"",null,null,null,null,null,""]
[null,null,null,null,null,null,"",null,null,null,null,null,""]
[null,null,null,null,null,null,"",null,null,null,null,null,""]
[null,null,null,null,null,null,"",null,null,null,null,null,""]
[null,null,null,null,null,null,"",null,null,null,null,null,""]
[null,null,null,null,null,null,"",null,null,null,null,null,""]
[null,null,null,null,null,null,"",null,null,null,null,null,""]
[null,null,null,null,null,null,"",null,null,null,null,null,""]
[null,null,null,null,null,null,"",null,null,null,null,null,""]
[null,null,null,null,null,null,"",null,null,null,null,null,""]
[null,null,null,null,null,null,"",null,null,null,null,null,""]
[null,null,null,null,null,null,{"$f":"IF(M48<>\"\",IF(COUNTIF($M$5:$M$54,M48)>1,\"●\",\"\"),\"\")","v":""},null,null,null,null,null,""]
[null,null,null,null,null,null,"",null,null,null,null,null,""]
[null,null,null,null,null,null,"",null,null,null,null,null,""]
[null,null,null,null,null,null,"",null,null,null,null,null,""]
[null,null,null,null,null,null,"",null,null,null,null,null,""]
[null,null,null,null,null,null,"",null,null,null,null,null,""]
[null,null,null,null,null,null,"",null,null,null,null,null,""]

{"sheet":"短なわレディＧＯ","index":3,"n_rows":1104,"n_cols":13,"rows_kept":1104,"cut":false,"hidden":false,"merged":[[0,0,0,5],[2,0,2,5]]}
["目指せ！やまなしチャンピオン！結果入力表"]
[]
["短なわ　レディ　ＧＯ",null,null,null,null,null,"重複チェック"]
["学年","組","学校名","ニックネーム","記録","実施日"]
[null,null,null,null,null,null,{"$f":"IF(M5<>\"\",IF(COUNTIF($M$5:$M$54,M5)>1,\"●\",\"\"),\"\")","v":""},null,null,null,null,null,{"$f":"A5&B5&C5&D5&F5","v":""}]
[null,null,null,null,null,null,{"$f":"IF(M6<>\"\",IF(COUNTIF($M$5:$M$54,M6)>1,\"●\",\"\"),\"\")","v":""},null,null,null,null,null,{"$f":"A6&B6&C6&D6&F6","v":""}]
[null,null,null,null,null,null,"",null,null,null,null,null,""]
[null,null,null,null,null,null,"",null,null,null,null,null,""]
[null,null,null,null,null,null,"",null,null,null,null,null,""]
[null,null,null,null,null,null,"",null,null,null,null,null,""]
[null,null,null,null,null,null,"",null,null,null,null,null,""]
[null,null,null,null,null,null,"",null,null,null,null,null,""]
[null,null,null,null,null,null,"",null,null,null,null,null,""]
[null,null,null,null,null,null,"",null,null,null,null,null,""]
[null,null,null,null,null,null,"",null,null,null,null,null,""]
[null,null,null,null,null,null,"",null,null,null,null,null,""]
[null,null,null,null,null,null,"",null,null,null,null,null,""]
[null,null,null,null,null,null,"",null,null,null,null,null,""]
[null,null,null,null,null,null,"",null,null,null,null,null,""]
[null,null,null,null,null,null,"",null,null,null,null,null,""]
[null,null,null,null,null,null,"",null,null,null,null,null,""]
[null,null,null,null,null,null,"",null,null,null,null,null,""]
[null,null,null,null,null,null,"",null,null,null,null,null,""]
[null,null,null,null,null,null,"",null,null,null,null,null,""]
[null,null,null,null,null,null,"",null,null,null,null,null,""]
[null,null,null,null,null,null,"",null,null,null,null,null,""]
[null,null,null,null,null,null,"",null,null,null,null,null,""]
[null,null,null,null,null,null,"",null,null,null,null,null,""]
[null,null,null,null,null,null,"",null,null,null,null,null,""]
[null,null,null,null,null,null,"",null,null,null,null,null,""]
[null,null,null,null,null,null,"",null,null,null,null,null,""]
[null,null,null,null,null,null,"",null,null,null,null,null,""]
[null,null,null,null,null,null,"",null,null,null,null,null,""]
[null,null,null,null,null,null,"",null,null,null,null,null,""]
[null,null,null,null,null,null,"",null,null,null,null,null,""]
[null,null,null,null,null,null,"",null,null,null,null,null,""]
[null,null,null,null,null,null,"",null,null,null,null,null,""]
[null,null,null,null,null,null,"",null,null,null,null,null,""]
[null,null,null,null,null,null,"",null,null,null,null,null,""]
[null,null,null,null,null,null,"",null,null,null,null,null,""]
[null,null,null,null,null,null,"",null,null,null,null,null,""]
[null,null,null,null,null,null,"",null,null,null,null,null,""]
[null,null,null,null,null,null,"",null,null,null,null,null,""]
[null,null,null,null,null,null,"",null,null,null,null,null,""]
[null,null,null,null,null,null,"",null,null,null,null,null,""]
[null,null,null,null,null,null,"",null,null,null,null,null,""]
[null,null,null,null,null,null,"",null,null,null,null,null,""]
[null,null,null,null,null,null,"",null,null,null,null,null,""]
[null,null,null,null,null,null,"",null,null,null,null,null,""]
[null,null,null,null,null,null,"",null,null,null,null,null,""]
[null,null,null,null,null,null,"",null,null,null,null,null,""]
[null,null,null,null,null,null,"",null,null,null,null,null,""]
[null,null,null,null,null,null,"",null,null,null,null,null,""]
[null,null,null,null,null,null,"",null,null,null,null,null,""]
[null,null,null,null,null,null,"",null,null,null,null,null,""]
[null,null,null,null,null,null,"",null,null,null,null,null,""]
[null,null,null,null,null,null,"",null,null,null,null,null,""]
[null,null,null,null,null,null,"",null,null,null,null,null,""]
[null,null,null,null,null,null,"",null,null,null,null,null,""]
[null,null,null,null,null,null,"",null,null,null,null,null,""]
[null,null,null,null,null,null,"",null,null,null,null,null,""]
[null,null,null,null,null,null,"",null,null,null,null,null,""]
[null,null,null,null,null,null,"",null,null,null,null,null,""]
[null,null,null,null,null,null,"",null,null,null,null,null,""]
[null,null,null,null,null,null,"",null,null,null,null,null,""]
[null,null,null,null,null,null,"",null,null,null,null,null,""]
[null,null,null,null,null,null,"",null,null,null,null,null,""]
[null,null,null,null,null,null,"",null,null,null,null,null,""]
[null,null,null,null,null,null,"",null,null,null,null,null,""]
[null,null,null,null,null,null,{"$f":"IF(M70<>\"\",IF(COUNTIF($M$5:$M$54,M70)>1,\"●\",\"\"),\"\")","v":""},null,null,null,null,null,{"$f":"A70&B70&C70&D70&F70","v":""}]
[null,null,null,null,null,null,"",null,null,null,null,null,""]
[null,null,null,null,null,null,"",null,null,null,null,null,""]
[null,null,null,null,null,null,"",null,null,null,null,null,""]
[null,null,null,null,null,null,"",null,null,null,null,null,""]
[null,null,null,null,null,null,"",null,null,null,null,null,""]
[null,null,null,null,null,null,"",null,null,null,null,null,""]
[null,null,null,null,null,null,"",null,null,null,null,null,""]
[null,null,null,null,null,null,"",null,null,null,null,null,""]
[null,null,null,null,null,null,"",null,null,null,null,null,""]
[null,null,null,null,null,null,"",null,null,null,null,null,""]
[null,null,null,null,null,null,"",null,null,null,null,null,""]
[null,null,null,null,null,null,"",null,null,null,null,null,""]
[null,null,null,null,null,null,"",null,null,null,null,null,""]
[null,null,null,null,null,null,"",null,null,null,null,null,""]
[null,null,null,null,null,null,"",null,null,null,null,null,""]
[null,null,null,null,null,null,"",null,null,null,null,null,""]
[null,null,null,null,null,null,"",null,null,null,null,null,""]
[null,null,null,null,null,null,"",null,null,null,null,null,""]
[null,null,null,null,null,null,"",null,null,null,null,null,""]
[null,null,null,null,null,null,"",null,null,null,null,null,""]
[null,null,null,null,null,null,"",null,null,null,null,null,""]
[null,null,null,null,null,null,"",null,null,null,null,null,""]
[null,null,null,null,null,null,"",null,null,null,null,null,""]
[null,null,null,null,null,null,"",null,null,null,null,null,""]
[null,null,null,null,null,null,"",null,null,null,null,null,""]
[null,null,null,null,null,null,"",null,null,null,null,null,""]
[null,null,null,null,null,null,"",null,null,null,null,null,""]
[null,null,null,null,null,null,"",null,null,null,null,null,""]
[null,null,null,null,null,null,"",null,null,null,null,null,""]
[null,null,null,null,null,null,"",null,null,null,null,null,""]
[null,null,null,null,null,null,"",null,null,null,null,null,""]
[null,null,null,null,null,null,"",null,null,null,null,null,""]
[null,null,null,null,null,null,"",null,null,null,null,null,""]
[null,null,null,null,null,null,"",null,null,null,null,null,""]
[null,null,null,null,null,null,"",null,null,null,null,null,""]
[null,null,null,null,null,null,"",null,null,null,null,null,""]
[null,null,null,null,null,null,"",null,null,null,null,null,""]
[null,null,null,null,null,null,"",null,null,null,null,null,""]
[null,null,null,null,null,null,"",null,null,null,null,null,""]
[null,null,null,null,null,null,"",null,null,null,null,null,""]
[null,null,null,null,null,null,"",null,null,null,null,null,""]
[null,null,null,null,null,null,"",null,null,null,null,null,""]
[null,null,null,null,null,null,"",null,null,null,null,null,""]
[null,null,null,null,null,null,"",null,null,null,null,null,""]
[null,null,null,null,null,null,"",null,null,null,null,null,""]
[null,null,null,null,null,null,"",null,null,null,null,null,""]
[null,null,null,null,null,null,"",null,null,null,null,null,""]
[null,null,null,null,null,null,"",null,null,null,null,null,""]
[null,null,null,null,null,null,"",null,null,null,null,null,""]
[null,null,null,null,null,null,"",null,null,null,null,null,""]
[null,null,null,null,null,null,"",null,null,null,null,null,""]
[null,null,null,null,null,null,"",null,null,null,null,null,""]
[null,null,null,null,null,null,"",null,null,null,null,null,""]
[null,null,null,null,null,null,"",null,null,null,null,null,""]
[null,null,null,null,null,null,"",null,null,null,null,null,""]
[null,null,null,null,null,null,"",null,null,null,null,null,""]
[null,null,null,null,null,null,"",null,null,null,null,null,""]
[null,null,null,null,null,null,"",null,null,null,null,null,""]
[null,null,null,null,null,null,"",null,null,null,null,null,""]
[null,null,null,null,null,null,"",null,null,null,null,null,""]
[null,null,null,null,null,null,"",null,null,null,null,null,""]
[null,null,null,null,null,null,"",null,null,null,null,null,""]
[null,null,null,null,null,null,"",null,null,null,null,null,""]
[null,null,null,null,null,null,{"$f":"IF(M134<>\"\",IF(COUNTIF($M$5:$M$54,M134)>1,\"●\",\"\"),\"\")","v":""},null,null,null,null,null,{"$f":"A134&B134&C134&D134&F134","v":""}]
[null,null,null,null,null,null,"",null,null,null,null,null,""]
[null,null,null,null,null,null,"",null,null,null,null,null,""]
[null,null,null,null,null,null,"",null,null,null,null,null,""]
[null,null,null,null,null,null,"",null,null,null,null,null,""]
[null,null,null,null,null,null,"",null,null,null,null,null,""]
[null,null,null,null,null,null,"",null,null,null,null,null,""]
[null,null,null,null,null,null,"",null,null,null,null,null,""]
[null,null,null,null,null,null,"",null,null,null,null,null,""]
[null,null,null,null,null,null,"",null,null,null,null,null,""]
[null,null,null,null,null,null,"",null,null,null,null,null,""]
[null,null,null,null,null,null,"",null,null,null,null,null,""]
[null,null,null,null,null,null,"",null,null,null,null,null,""]
[null,null,null,null,null,null,"",null,null,null,null,null,""]
[null,null,null,null,null,null,"",null,null,null,null,null,""]
[null,null,null,null,null,null,"",null,null,null,null,null,""]
[null,null,null,null,null,null,"",null,null,null,null,null,""]
[null,null,null,null,null,null,"",null,null,null,null,null,""]
[null,null,null,null,null,null,"",null,null,null,null,null,""]
[null,null,null,null,null,null,"",null,null,null,null,null,""]
[null,null,null,null,null,null,"",null,null,null,null,null,""]
[null,null,null,null,null,null,"",null,null,null,null,null,""]
[null,null,null,null,null,null,"",null,null,null,null,null,""]
[null,null,null,null,null,null,"",null,null,null,null,null,""]
[null,null,null,null,null,null,"",null,null,null,null,null,""]
[null,null,null,null,null,null,"",null,null,null,null,null,""]
[null,null,null,null,null,null,"",null,null,null,null,null,""]
[null,null,null,null,null,null,"",null,null,null,null,null,""]
[null,null,null,null,null,null,"",null,null,null,null,null,""]
[null,null,null,null,null,null,"",null,null,null,null,null,""]
[null,null,null,null,null,null,"",null,null,null,null,null,""]
[null,null,null,null,null,null,"",null,null,null,null,null,""]
[null,null,null,null,null,null,"",null,null,null,null,null,""]
[null,null,null,null,null,null,"",null,null,null,null,null,""]
[null,null,null,null,null,null,"",null,null,null,null,null,""]
[null,null,null,null,null,null,"",null,null,null,null,null,""]
[null,null,null,null,null,null,"",null,null,null,null,null,""]
[null,null,null,null,null,null,"",null,null,null,null,null,""]
[null,null,null,null,null,null,"",null,null,null,null,null,""]
[null,null,null,null,null,null,"",null,null,null,null,null,""]
[null,null,null,null,null,null,"",null,null,null,null,null,""]
[null,null,null,null,null,null,"",null,null,null,null,null,""]
[null,null,null,null,null,null,"",null,null,null,null,null,""]
[null,null,null,null,null,null,"",null,null,null,null,null,""]
[null,null,null,null,null,null,"",null,null,null,null,null,""]
[null,null,null,null,null,null,"",null,null,null,null,null,""]
[null,null,null,null,null,null,"",null,null,null,null,null,""]
[null,null,null,null,null,null,"",null,null,null,null,null,""]
[null,null,null,null,null,null,"",null,null,null,null,null,""]
[null,null,null,null,null,null,"",null,null,null,null,null,""]
[null,null,null,null,null,null,"",null,null,null,null,null,""]
[null,null,null,null,null,null,"",null,null,null,null,null,""]
[null,null,null,null,null,null,"",null,null,null,null,null,""]
[null,null,null,null,null,null,"",null,null,null,null,null,""]
[null,null,null,null,null,null,"",null,null,null,null,null,""]
[null,null,null,null,null,null,"",null,null,null,null,null,""]
[null,null,null,null,null,null,"",null,null,null,null,null,""]
[null,null,null,null,null,null,"",null,null,null,null,null,""]
[null,null,null,null,null,null,"",null,null,null,null,null,""]
[null,null,null,null,null,null,"",null,null,null,null,null,""]
[null,null,null,null,null,null,"",null,null,null,null,null,""]
[null,null,null,null,null,null,"",null,null,null,null,null,""]
[null,null,null,null,null,null,"",null,null,null,null,null,""]
[null,null,null,null,null,null,"",null,null,null,null,null,""]
[null,null,null,null,null,null,{"$f":"IF(M198<>\"\",IF(COUNTIF($M$5:$M$54,M198)>1,\"●\",\"\"),\"\")","v":""},null,null,null,null,null,{"$f":"A198&B198&C198&D198&F198","v":""}]
[null,null,null,null,null,null,"",null,null,null,null,null,""]
[null,null,null,null,null,null,"",null,null,null,null,null,""]
[null,null,null,null,null,null,"",null,null,null,null,null,""]
[null,null,null,null,null,null,"",null,null,null,null,null,""]
[null,null,null,null,null,null,"",null,null,null,null,null,""]
[null,null,null,null,null,null,"",null,null,null,null,null,""]
[null,null,null,null,null,null,"",null,null,null,null,null,""]
[null,null,null,null,null,null,"",null,null,null,null,null,""]
[null,null,null,null,null,null,"",null,null,null,null,null,""]
[null,null,null,null,null,null,"",null,null,null,null,null,""]
[null,null,null,null,null,null,"",null,null,null,null,null,""]
[null,null,null,null,null,null,"",null,null,null,null,null,""]
[null,null,null,null,null,null,"",null,null,null,null,null,""]
[null,null,null,null,null,null,"",null,null,null,null,null,""]
[null,null,null,null,null,null,"",null,null,null,null,null,""]
[null,null,null,null,null,null,"",null,null,null,null,null,""]
[null,null,null,null,null,null,"",null,null,null,null,null,""]
[null,null,null,null,null,null,"",null,null,null,null,null,""]
[null,null,null,null,null,null,"",null,null,null,null,null,""]
[null,null,null,null,null,null,"",null,null,null,null,null,""]
[null,null,null,null,null,null,"",null,null,null,null,null,""]
[null,null,null,null,null,null,"",null,null,null,null,null,""]
[null,null,null,null,null,null,"",null,null,null,null,null,""]
[null,null,null,null,null,null,"",null,null,null,null,null,""]
[null,null,null,null,null,null,"",null,null,null,null,null,""]
[null,null,null,null,null,null,"",null,null,null,null,null,""]
[null,null,null,null,null,null,"",null,null,null,null,null,""]
[null,null,null,null,null,null,"",null,null,null,null,null,""]
[null,null,null,null,null,null,"",null,null,null,null,null,""]
[null,null,null,null,null,null,"",null,null,null,null,null,""]
[null,null,null,null,null,null,"",null,null,null,null,null,""]
[null,null,null,null,null,null,"",null,null,null,null,null,""]
[null,null,null,null,null,null,"",null,null,null,null,null,""]
[null,null,null,null,null,null,"",null,null,null,null,null,""]
[null,null,null,null,null,null,"",null,null,null,null,null,""]
[null,null,null,null,null,null,"",null,null,null,null,null,""]
[null,null,null,null,null,null,"",null,null,null,null,null,""]
[null,null,null,null,null,null,"",null,null,null,null,null,""]
[null,null,null,null,null,null,"",null,null,null,null,null,""]
[null,null,null,null,null,null,"",null,null,null,null,null,""]
[null,null,null,null,null,null,"",null,null,null,null,null,""]
[null,null,null,null,null,null,"",null,null,null,null,null,""]
[null,null,null,null,null,null,"",null,null,null,null,null,""]
[null,null,null,null,null,null,"",null,null,null,null,null,""]
[null,null,null,null,null,null,"",null,null,null,null,null,""]
[null,null,null,null,null,null,"",null,null,null,null,null,""]
[null,null,null,null,null,null,"",null,null,null,null,null,""]
[null,null,null,null,null,null,"",null,null,null,null,null,""]
[null,null,null,null,null,null,"",null,null,null,null,null,""]
[null,null,null,null,null,null,"",null,null,null,null,null,""]
[null,null,null,null,null,null,"",null,null,null,null,null,""]
[null,null,null,null,null,null,"",null,null,null,null,null,""]
[null,null,null,null,null,null,"",null,null,null,null,null,""]
[null,null,null,null,null,null,"",null,null,null,null,null,""]
[null,null,null,null,null,null,"",null,null,null,null,null,""]
[null,null,null,null,null,null,"",null,null,null,null,null,""]
[null,null,null,null,null,null,"",null,null,null,null,null,""]
[null,null,null,null,null,null,"",null,null,null,null,null,""]
[null,null,null,null,null,null,"",null,null,null,null,null,""]
[null,null,null,null,null,null,"",null,null,null,null,null,""]
[null,null,null,null,null,null,"",null,null,null,null,null,""]
[null,null,null,null,null,null,"",null,null,null,null,null,""]
[null,null,null,null,null,null,"",null,null,null,null,null,""]
[null,null,null,null,null,null,{"$f":"IF(M262<>\"\",IF(COUNTIF($M$5:$M$54,M262)>1,\"●\",\"\"),\"\")","v":""},null,null,null,null,null,{"$f":"A262&B262&C262&D262&F262","v":""}]
[null,null,null,null,null,null,"",null,null,null,null,null,""]
[null,null,null,null,null,null,"",null,null,null,null,null,""]
[null,null,null,null,null,null,"",null,null,null,null,null,""]
[null,null,null,null,null,null,"",null,null,null,null,null,""]
[null,null,null,null,null,null,"",null,null,null,null,null,""]
[null,null,null,null,null,null,"",null,null,null,null,null,""]
[null,null,null,null,null,null,"",null,null,null,null,null,""]
[null,null,null,null,null,null,"",null,null,null,null,null,""]
[null,null,null,null,null,null,"",null,null,null,null,null,""]
[null,null,null,null,null,null,"",null,null,null,null,null,""]
[null,null,null,null,null,null,"",null,null,null,null,null,""]
[null,null,null,null,null,null,"",null,null,null,null,null,""]
[null,null,null,null,null,null,"",null,null,null,null,null,""]
[null,null,null,null,null,null,"",null,null,null,null,null,""]
[null,null,null,null,null,null,"",null,null,null,null,null,""]
[null,null,null,null,null,null,"",null,null,null,null,null,""]
[null,null,null,null,null,null,"",null,null,null,null,null,""]
[null,null,null,null,null,null,"",null,null,null,null,null,""]
[null,null,null,null,null,null,"",null,null,null,null,null,""]
[null,null,null,null,null,null,"",null,null,null,null,null,""]
[null,null,null,null,null,null,"",null,null,null,null,null,""]
[null,null,null,null,null,null,"",null,null,null,null,null,""]
[null,null,null,null,null,null,"",null,null,null,null,null,""]
[null,null,null,null,null,null,"",null,null,null,null,null,""]
[null,null,null,null,null,null,"",null,null,null,null,null,""]
[null,null,null,null,null,null,"",null,null,null,null,null,""]
[null,null,null,null,null,null,"",null,null,null,null,null,""]
[null,null,null,null,null,null,"",null,null,null,null,null,""]
[null,null,null,null,null,null,"",null,null,null,null,null,""]
[null,null,null,null,null,null,"",null,null,null,null,null,""]
[null,null,null,null,null,null,"",null,null,null,null,null,""]
[null,null,null,null,null,null,"",null,null,null,null,null,""]
[null,null,null,null,null,null,"",null,null,null,null,null,""]
[null,null,null,null,null,null,"",null,null,null,null,null,""]
[null,null,null,null,null,null,"",null,null,null,null,null,""]
[null,null,null,null,null,null,"",null,null,null,null,null,""]
[null,null,null,null,null,null,"",null,null,null,null,null,""]
[null,null,null,null,null,null,"",null,null,null,null,null,""]
[null,null,null,null,null,null,"",null,null,null,null,null,""]
[null,null,null,null,null,null,"",null,null,null,null,null,""]
[null,null,null,null,null,null,"",null,null,null,null,null,""]
[null,null,null,null,null,null,"",null,null,null,null,null,""]
[null,null,null,null,null,null,"",null,null,null,null,null,""]
[null,null,null,null,null,null,"",null,null,null,null,null,""]
[null,null,null,null,null,null,"",null,null,null,null,null,""]
[null,null,null,null,null,null,"",null,null,null,null,null,""]
[null,null,null,null,null,null,"",null,null,null,null,null,""]
[null,null,null,null,null,null,"",null,null,null,null,null,""]
[null,null,null,null,null,null,"",null,null,null,null,null,""]
[null,null,null,null,null,null,"",null,null,null,null,null,""]
[null,null,null,null,null,null,"",null,null,null,null,null,""]
[null,null,null,null,null,null,"",null,null,null,null,null,""]
[null,null,null,null,null,null,"",null,null,null,null,null,""]
[null,null,null,null,null,null,"",null,null,null,null,null,""]
[null,null,null,null,null,null,"",null,null,null,null,null,""]
[null,null,null,null,null,null,"",null,null,null,null,null,""]
[null,null,null,null,null,null,"",null,null,null,null,null,""]
[null,null,null,null,null,null,"",null,null,null,null,null,""]
[null,null,null,null,null,null,"",null,null,null,null,null,""]
[null,null,null,null,null,null,"",null,null,null,null,null,""]
[null,null,null,null,null,null,"",null,null,null,null,null,""]
[null,null,null,null,null,null,"",null,null,null,null,null,""]
[null,null,null,null,null,null,"",null,null,null,null,null,""]
[null,null,null,null,null,null,{"$f":"IF(M326<>\"\",IF(COUNTIF($M$5:$M$54,M326)>1,\"●\",\"\"),\"\")","v":""},null,null,null,null,null,{"$f":"A326&B326&C326&D326&F326","v":""}]
[null,null,null,null,null,null,"",null,null,null,null,null,""]
[null,null,null,null,null,null,"",null,null,null,null,null,""]
[null,null,null,null,null,null,"",null,null,null,null,null,""]
[null,null,null,null,null,null,"",null,null,null,null,null,""]
[null,null,null,null,null,null,"",null,null,null,null,null,""]
[null,null,null,null,null,null,"",null,null,null,null,null,""]
[null,null,null,null,null,null,"",null,null,null,null,null,""]
[null,null,null,null,null,null,"",null,null,null,null,null,""]
[null,null,null,null,null,null,"",null,null,null,null,null,""]
[null,null,null,null,null,null,"",null,null,null,null,null,""]
[null,null,null,null,null,null,"",null,null,null,null,null,""]
[null,null,null,null,null,null,"",null,null,null,null,null,""]
[null,null,null,null,null,null,"",null,null,null,null,null,""]
[null,null,null,null,null,null,"",null,null,null,null,null,""]
[null,null,null,null,null,null,"",null,null,null,null,null,""]
[null,null,null,null,null,null,"",null,null,null,null,null,""]
[null,null,null,null,null,null,"",null,null,null,null,null,""]
[null,null,null,null,null,null,"",null,null,null,null,null,""]
[null,null,null,null,null,null,"",null,null,null,null,null,""]
[null,null,null,null,null,null,"",null,null,null,null,null,""]
[null,null,null,null,null,null,"",null,null,null,null,null,""]
[null,null,null,null,null,null,"",null,null,null,null,null,""]
[null,null,null,null,null,null,"",null,null,null,null,null,""]
[null,null,null,null,null,null,"",null,null,null,null,null,""]
[null,null,null,null,null,null,"",null,null,null,null,null,""]
[null,null,null,null,null,null,"",null,null,null,null,null,""]
[null,null,null,null,null,null,"",null,null,null,null,null,""]
[null,null,null,null,null,null,"",null,null,null,null,null,""]
[null,null,null,null,null,null,"",null,null,null,null,null,""]
[null,null,null,null,null,null,"",null,null,null,null,null,""]
[null,null,null,null,null,null,"",null,null,null,null,null,""]
[null,null,null,null,null,null,"",null,null,null,null,null,""]
[null,null,null,null,null,null,"",null,null,null,null,null,""]
[null,null,null,null,null,null,"",null,null,null,null,null,""]
[null,null,null,null,null,null,"",null,null,null,null,null,""]
[null,null,null,null,null,null,"",null,null,null,null,null,""]
[null,null,null,null,null,null,"",null,null,null,null,null,""]
[null,null,null,null,null,null,"",null,null,null,null,null,""]
[null,null,null,null,null,null,"",null,null,null,null,null,""]
[null,null,null,null,null,null,"",null,null,null,null,null,""]
[null,null,null,null,null,null,"",null,null,null,null,null,""]
[null,null,null,null,null,null,"",null,null,null,null,null,""]
[null,null,null,null,null,null,"",null,null,null,null,null,""]
[null,null,null,null,null,null,"",null,null,null,null,null,""]
[null,null,null,null,null,null,"",null,null,null,null,null,""]
[null,null,null,null,null,null,"",null,null,null,null,null,""]
[null,null,null,null,null,null,"",null,null,null,null,null,""]
[null,null,null,null,null,null,"",null,null,null,null,null,""]
[null,null,null,null,null,null,"",null,null,null,null,null,""]
[null,null,null,null,null,null,"",null,null,null,null,null,""]
[null,null,null,null,null,null,"",null,null,null,null,null,""]
[null,null,null,null,null,null,"",null,null,null,null,null,""]
[null,null,null,null,null,null,"",null,null,null,null,null,""]
[null,null,null,null,null,null,"",null,null,null,null,null,""]
[null,null,null,null,null,null,"",null,null,null,null,null,""]
[null,null,null,null,null,null,"",null,null,null,null,null,""]
[null,null,null,null,null,null,"",null,null,null,null,null,""]
[null,null,null,null,null,null,"",null,null,null,null,null,""]
[null,null,null,null,null,null,"",null,null,null,null,null,""]
[null,null,null,null,null,null,"",null,null,null,null,null,""]
[null,null,null,null,null,null,"",null,null,null,null,null,""]
[null,null,null,null,null,null,"",null,null,null,null,null,""]
[null,null,null,null,null,null,"",null,null,null,null,null,""]
[null,null,null,null,null,null,{"$f":"IF(M390<>\"\",IF(COUNTIF($M$5:$M$54,M390)>1,\"●\",\"\"),\"\")","v":""},null,null,null,null,null,{"$f":"A390&B390&C390&D390&F390","v":""}]
[null,null,null,null,null,null,"",null,null,null,null,null,""]
[null,null,null,null,null,null,"",null,null,null,null,null,""]
[null,null,null,null,null,null,"",null,null,null,null,null,""]
[null,null,null,null,null,null,"",null,null,null,null,null,""]
[null,null,null,null,null,null,"",null,null,null,null,null,""]
[null,null,null,null,null,null,"",null,null,null,null,null,""]
[null,null,null,null,null,null,"",null,null,null,null,null,""]
[null,null,null,null,null,null,"",null,null,null,null,null,""]
[null,null,null,null,null,null,"",null,null,null,null,null,""]
[null,null,null,null,null,null,"",null,null,null,null,null,""]
[null,null,null,null,null,null,"",null,null,null,null,null,""]
[null,null,null,null,null,null,"",null,null,null,null,null,""]
[null,null,null,null,null,null,"",null,null,null,null,null,""]
[null,null,null,null,null,null,"",null,null,null,null,null,""]
[null,null,null,null,null,null,"",null,null,null,null,null,""]
[null,null,null,null,null,null,"",null,null,null,null,null,""]
[null,null,null,null,null,null,"",null,null,null,null,null,""]
[null,null,null,null,null,null,"",null,null,null,null,null,""]
[null,null,null,null,null,null,"",null,null,null,null,null,""]
[null,null,null,null,null,null,"",null,null,null,null,null,""]
[null,null,null,null,null,null,"",null,null,null,null,null,""]
[null,null,null,null,null,null,"",null,null,null,null,null,""]
[null,null,null,null,null,null,"",null,null,null,null,null,""]
[null,null,null,null,null,null,"",null,null,null,null,null,""]
[null,null,null,null,null,null,"",null,null,null,null,null,""]
[null,null,null,null,null,null,"",null,null,null,null,null,""]
[null,null,null,null,null,null,"",null,null,null,null,null,""]
[null,null,null,null,null,null,"",null,null,null,null,null,""]
[null,null,null,null,null,null,"",null,null,null,null,null,""]
[null,null,null,null,null,null,"",null,null,null,null,null,""]
[null,null,null,null,null,null,"",null,null,null,null,null,""]
[null,null,null,null,null,null,"",null,null,null,null,null,""]
[null,null,null,null,null,null,"",null,null,null,null,null,""]
[null,null,null,null,null,null,"",null,null,null,null,null,""]
[null,null,null,null,null,null,"",null,null,null,null,null,""]
[null,null,null,null,null,null,"",null,null,null,null,null,""]
[null,null,null,null,null,null,"",null,null,null,null,null,""]
[null,null,null,null,null,null,"",null,null,null,null,null,""]
[null,null,null,null,null,null,"",null,null,null,null,null,""]
[null,null,null,null,null,null,"",null,null,null,null,null,""]
[null,null,null,null,null,null,"",null,null,null,null,null,""]
[null,null,null,null,null,null,"",null,null,null,null,null,""]
[null,null,null,null,null,null,"",null,null,null,null,null,""]
[null,null,null,null,null,null,"",null,null,null,null,null,""]
[null,null,null,null,null,null,"",null,null,null,null,null,""]
[null,null,null,null,null,null,"",null,null,null,null,null,""]
[null,null,null,null,null,null,"",null,null,null,null,null,""]
[null,null,null,null,null,null,"",null,null,null,null,null,""]
[null,null,null,null,null,null,"",null,null,null,null,null,""]
[null,null,null,null,null,null,"",null,null,null,null,null,""]
[null,null,null,null,null,null,"",null,null,null,null,null,""]
[null,null,null,null,null,null,"",null,null,null,null,null,""]
[null,null,null,null,null,null,"",null,null,null,null,null,""]
[null,null,null,null,null,null,"",null,null,null,null,null,""]
[null,null,null,null,null,null,"",null,null,null,null,null,""]
[null,null,null,null,null,null,"",null,null,null,null,null,""]
[null,null,null,null,null,null,"",null,null,null,null,null,""]
[null,null,null,null,null,null,"",null,null,null,null,null,""]
[null,null,null,null,null,null,"",null,null,null,null,null,""]
[null,null,null,null,null,null,"",null,null,null,null,null,""]
[null,null,null,null,null,null,"",null,null,null,null,null,""]
[null,null,null,null,null,null,"",null,null,null,null,null,""]
[null,null,null,null,null,null,"",null,null,null,null,null,""]
[null,null,null,null,null,null,{"$f":"IF(M454<>\"\",IF(COUNTIF($M$5:$M$54,M454)>1,\"●\",\"\"),\"\")","v":""},null,null,null,null,null,{"$f":"A454&B454&C454&D454&F454","v":""}]
[null,null,null,null,null,null,"",null,null,null,null,null,""]
[null,null,null,null,null,null,"",null,null,null,null,null,""]
[null,null,null,null,null,null,"",null,null,null,null,null,""]
[null,null,null,null,null,null,"",null,null,null,null,null,""]
[null,null,null,null,null,null,"",null,null,null,null,null,""]
[null,null,null,null,null,null,"",null,null,null,null,null,""]
[null,null,null,null,null,null,"",null,null,null,null,null,""]
[null,null,null,null,null,null,"",null,null,null,null,null,""]
[null,null,null,null,null,null,"",null,null,null,null,null,""]
[null,null,null,null,null,null,"",null,null,null,null,null,""]
[null,null,null,null,null,null,"",null,null,null,null,null,""]
[null,null,null,null,null,null,"",null,null,null,null,null,""]
[null,null,null,null,null,null,"",null,null,null,null,null,""]
[null,null,null,null,null,null,"",null,null,null,null,null,""]
[null,null,null,null,null,null,"",null,null,null,null,null,""]
[null,null,null,null,null,null,"",null,null,null,null,null,""]
[null,null,null,null,null,null,"",null,null,null,null,null,""]
[null,null,null,null,null,null,"",null,null,null,null,null,""]
[null,null,null,null,null,null,"",null,null,null,null,null,""]
[null,null,null,null,null,null,"",null,null,null,null,null,""]
[null,null,null,null,null,null,"",null,null,null,null,null,""]
[null,null,null,null,null,null,"",null,null,null,null,null,""]
[null,null,null,null,null,null,"",null,null,null,null,null,""]
[null,null,null,null,null,null,"",null,null,null,null,null,""]
[null,null,null,null,null,null,"",null,null,null,null,null,""]
[null,null,null,null,null,null,"",null,null,null,null,null,""]
[null,null,null,null,null,null,"",null,null,null,null,null,""]
[null,null,null,null,null,null,"",null,null,null,null,null,""]
[null,null,null,null,null,null,"",null,null,null,null,null,""]
[null,null,null,null,null,null,"",null,null,null,null,null,""]
[null,null,null,null,null,null,"",null,null,null,null,null,""]
[null,null,null,null,null,null,"",null,null,null,null,null,""]
[null,null,null,null,null,null,"",null,null,null,null,null,""]
[null,null,null,null,null,null,"",null,null,null,null,null,""]
[null,null,null,null,null,null,"",null,null,null,null,null,""]
[null,null,null,null,null,null,"",null,null,null,null,null,""]
[null,null,null,null,null,null,"",null,null,null,null,null,""]
[null,null,null,null,null,null,"",null,null,null,null,null,""]
[null,null,null,null,null,null,"",null,null,null,null,null,""]
[null,null,null,null,null,null,"",null,null,null,null,null,""]
[null,null,null,null,null,null,"",null,null,null,null,null,""]
[null,null,null,null,null,null,"",null,null,null,null,null,""]
[null,null,null,null,null,null,"",null,null,null,null,null,""]
[null,null,null,null,null,null,"",null,null,null,null,null,""]
[null,null,null,null,null,null,"",null,null,null,null,null,""]
[null,null,null,null,null,null,"",null,null,null,null,null,""]
[null,null,null,null,null,null,"",null,null,null,null,null,""]
[null,null,null,null,null,null,"",null,null,null,null,null,""]
[null,null,null,null,null,null,"",null,null,null,null,null,""]
[null,null,null,null,null,null,"",null,null,null,null,null,""]
[null,null,null,null,null,null,"",null,null,null,null,null,""]
[null,null,null,null,null,null,"",null,null,null,null,null,""]
[null,null,null,null,null,null,"",null,null,null,null,null,""]
[null,null,null,null,null,null,"",null,null,null,null,null,""]
[null,null,null,null,null,null,"",null,null,null,null,null,""]
[null,null,null,null,null,null,"",null,null,null,null,null,""]
[null,null,null,null,null,null,"",null,null,null,null,null,""]
[null,null,null,null,null,null,"",null,null,null,null,null,""]
[null,null,null,null,null,null,"",null,null,null,null,null,""]
[null,null,null,null,null,null,"",null,null,null,null,null,""]
[null,null,null,null,null,null,"",null,null,null,null,null,""]
[null,null,null,null,null,null,"",null,null,null,null,null,""]
[null,null,null,null,null,null,"",null,null,null,null,null,""]
[null,null,null,null,null,null,{"$f":"IF(M518<>\"\",IF(COUNTIF($M$5:$M$54,M518)>1,\"●\",\"\"),\"\")","v":""},null,null,null,null,null,{"$f":"A518&B518&C518&D518&F518","v":""}]
[null,null,null,null,null,null,"",null,null,null,null,null,""]
[null,null,null,null,null,null,"",null,null,null,null,null,""]
[null,null,null,null,null,null,"",null,null,null,null,null,""]
[null,null,null,null,null,null,"",null,null,null,null,null,""]
[null,null,null,null,null,null,"",null,null,null,null,null,""]
[null,null,null,null,null,null,"",null,null,null,null,null,""]
[null,null,null,null,null,null,"",null,null,null,null,null,""]
[null,null,null,null,null,null,"",null,null,null,null,null,""]
[null,null,null,null,null,null,"",null,null,null,null,null,""]
[null,null,null,null,null,null,"",null,null,null,null,null,""]
[null,null,null,null,null,null,"",null,null,null,null,null,""]
[null,null,null,null,null,null,"",null,null,null,null,null,""]
[null,null,null,null,null,null,"",null,null,null,null,null,""]
[null,null,null,null,null,null,"",null,null,null,null,null,""]
[null,null,null,null,null,null,"",null,null,null,null,null,""]
[null,null,null,null,null,null,"",null,null,null,null,null,""]
[null,null,null,null,null,null,"",null,null,null,null,null,""]
[null,null,null,null,null,null,"",null,null,null,null,null,""]
[null,null,null,null,null,null,"",null,null,null,null,null,""]
[null,null,null,null,null,null,"",null,null,null,null,null,""]
[null,null,null,null,null,null,"",null,null,null,null,null,""]
[null,null,null,null,null,null,"",null,null,null,null,null,""]
[null,null,null,null,null,null,"",null,null,null,null,null,""]
[null,null,null,null,null,null,"",null,null,null,null,null,""]
[null,null,null,null,null,null,"",null,null,null,null,null,""]
[null,null,null,null,null,null,"",null,null,null,null,null,""]
[null,null,null,null,null,null,"",null,null,null,null,null,""]
[null,null,null,null,null,null,"",null,null,null,null,null,""]
[null,null,null,null,null,null,"",null,null,null,null,null,""]
[null,null,null,null,null,null,"",null,null,null,null,null,""]
[null,null,null,null,null,null,"",null,null,null,null,null,""]
[null,null,null,null,null,null,"",null,null,null,null,null,""]
[null,null,null,null,null,null,"",null,null,null,null,null,""]
[null,null,null,null,null,null,"",null,null,null,null,null,""]
[null,null,null,null,null,null,"",null,null,null,null,null,""]
[null,null,null,null,null,null,"",null,null,null,null,null,""]
[null,null,null,null,null,null,"",null,null,null,null,null,""]
[null,null,null,null,null,null,"",null,null,null,null,null,""]
[null,null,null,null,null,null,"",null,null,null,null,null,""]
[null,null,null,null,null,null,"",null,null,null,null,null,""]
[null,null,null,null,null,null,"",null,null,null,null,null,""]
[null,null,null,null,null,null,"",null,null,null,null,null,""]
[null,null,null,null,null,null,"",null,null,null,null,null,""]
[null,null,null,null,null,null,"",null,null,null,null,null,""]
[null,null,null,null,null,null,"",null,null,null,null,null,""]
[null,null,null,null,null,null,"",null,null,null,null,null,""]
[null,null,null,null,null,null,"",null,null,null,null,null,""]
[null,null,null,null,null,null,"",null,null,null,null,null,""]
[null,null,null,null,null,null,"",null,null,null,null,null,""]
[null,null,null,null,null,null,"",null,null,null,null,null,""]
[null,null,null,null,null,null,"",null,null,null,null,null,""]
[null,null,null,null,null,null,"",null,null,null,null,null,""]
[null,null,null,null,null,null,"",null,null,null,null,null,""]
[null,null,null,null,null,null,"",null,null,null,null,null,""]
[null,null,null,null,null,null,"",null,null,null,null,null,""]
[null,null,null,null,null,null,"",null,null,null,null,null,""]
[null,null,null,null,null,null,"",null,null,null,null,null,""]
[null,null,null,null,null,null,"",null,null,null,null,null,""]
[null,null,null,null,null,null,"",null,null,null,null,null,""]
[null,null,null,null,null,null,"",null,null,null,null,null,""]
[null,null,null,null,null,null,"",null,null,null,null,null,""]
[null,null,null,null,null,null,"",null,null,null,null,null,""]
[null,null,null,null,null,null,"",null,null,null,null,null,""]
[null,null,null,null,null,null,{"$f":"IF(M582<>\"\",IF(COUNTIF($M$5:$M$54,M582)>1,\"●\",\"\"),\"\")","v":""},null,null,null,null,null,{"$f":"A582&B582&C582&D582&F582","v":""}]
[null,null,null,null,null,null,"",null,null,null,null,null,""]
[null,null,null,null,null,null,"",null,null,null,null,null,""]
[null,null,null,null,null,null,"",null,null,null,null,null,""]
[null,null,null,null,null,null,"",null,null,null,null,null,""]
[null,null,null,null,null,null,"",null,null,null,null,null,""]
[null,null,null,null,null,null,"",null,null,null,null,null,""]
[null,null,null,null,null,null,"",null,null,null,null,null,""]
[null,null,null,null,null,null,"",null,null,null,null,null,""]
[null,null,null,null,null,null,"",null,null,null,null,null,""]
[null,null,null,null,null,null,"",null,null,null,null,null,""]
[null,null,null,null,null,null,"",null,null,null,null,null,""]
[null,null,null,null,null,null,"",null,null,null,null,null,""]
[null,null,null,null,null,null,"",null,null,null,null,null,""]
[null,null,null,null,null,null,"",null,null,null,null,null,""]
[null,null,null,null,null,null,"",null,null,null,null,null,""]
[null,null,null,null,null,null,"",null,null,null,null,null,""]
[null,null,null,null,null,null,"",null,null,null,null,null,""]
[null,null,null,null,null,null,"",null,null,null,null,null,""]
[null,null,null,null,null,null,"",null,null,null,null,null,""]
[null,null,null,null,null,null,"",null,null,null,null,null,""]
[null,null,null,null,null,null,"",null,null,null,null,null,""]
[null,null,null,null,null,null,"",null,null,null,null,null,""]
[null,null,null,null,null,null,"",null,null,null,null,null,""]
[null,null,null,null,null,null,"",null,null,null,null,null,""]
[null,null,null,null,null,null,"",null,null,null,null,null,""]
[null,null,null,null,null,null,"",null,null,null,null,null,""]
[null,null,null,null,null,null,"",null,null,null,null,null,""]
[null,null,null,null,null,null,"",null,null,null,null,null,""]
[null,null,null,null,null,null,"",null,null,null,null,null,""]
[null,null,null,null,null,null,"",null,null,null,null,null,""]
[null,null,null,null,null,null,"",null,null,null,null,null,""]
[null,null,null,null,null,null,"",null,null,null,null,null,""]
[null,null,null,null,null,null,"",null,null,null,null,null,""]
[null,null,null,null,null,null,"",null,null,null,null,null,""]
[null,null,null,null,null,null,"",null,null,null,null,null,""]
[null,null,null,null,null,null,"",null,null,null,null,null,""]
[null,null,null,null,null,null,"",null,null,null,null,null,""]
[null,null,null,null,null,null,"",null,null,null,null,null,""]
[null,null,null,null,null,null,"",null,null,null,null,null,""]
[null,null,null,null,null,null,"",null,null,null,null,null,""]
[null,null,null,null,null,null,"",null,null,null,null,null,""]
[null,null,null,null,null,null,"",null,null,null,null,null,""]
[null,null,null,null,null,null,"",null,null,null,null,null,""]
[null,null,null,null,null,null,"",null,null,null,null,null,""]
[null,null,null,null,null,null,"",null,null,null,null,null,""]
[null,null,null,null,null,null,"",null,null,null,null,null,""]
[null,null,null,null,null,null,"",null,null,null,null,null,""]
[null,null,null,null,null,null,"",null,null,null,null,null,""]
[null,null,null,null,null,null,"",null,null,null,null,null,""]
[null,null,null,null,null,null,"",null,null,null,null,null,""]
[null,null,null,null,null,null,"",null,null,null,null,null,""]
[null,null,null,null,null,null,"",null,null,null,null,null,""]
[null,null,null,null,null,null,"",null,null,null,null,null,""]
[null,null,null,null,null,null,"",null,null,null,null,null,""]
[null,null,null,null,null,null,"",null,null,null,null,null,""]
[null,null,null,null,null,null,"",null,null,null,null,null,""]
[null,null,null,null,null,null,"",null,null,null,null,null,""]
[null,null,null,null,null,null,"",null,null,null,null,null,""]
[null,null,null,null,null,null,"",null,null,null,null,null,""]
[null,null,null,null,null,null,"",null,null,null,null,null,""]
[null,null,null,null,null,null,"",null,null,null,null,null,""]
[null,null,null,null,null,null,"",null,null,null,null,null,""]
[null,null,null,null,null,null,"",null,null,null,null,null,""]
[null,null,null,null,null,null,{"$f":"IF(M646<>\"\",IF(COUNTIF($M$5:$M$54,M646)>1,\"●\",\"\"),\"\")","v":""},null,null,null,null,null,{"$f":"A646&B646&C646&D646&F646","v":""}]
[null,null,null,null,null,null,"",null,null,null,null,null,""]
[null,null,null,null,null,null,"",null,null,null,null,null,""]
[null,null,null,null,null,null,"",null,null,null,null,null,""]
[null,null,null,null,null,null,"",null,null,null,null,null,""]
[null,null,null,null,null,null,"",null,null,null,null,null,""]
[null,null,null,null,null,null,"",null,null,null,null,null,""]
[null,null,null,null,null,null,"",null,null,null,null,null,""]
[null,null,null,null,null,null,"",null,null,null,null,null,""]
[null,null,null,null,null,null,"",null,null,null,null,null,""]
[null,null,null,null,null,null,"",null,null,null,null,null,""]
[null,null,null,null,null,null,"",null,null,null,null,null,""]
[null,null,null,null,null,null,"",null,null,null,null,null,""]
[null,null,null,null,null,null,"",null,null,null,null,null,""]
[null,null,null,null,null,null,"",null,null,null,null,null,""]
[null,null,null,null,null,null,"",null,null,null,null,null,""]
[null,null,null,null,null,null,"",null,null,null,null,null,""]
[null,null,null,null,null,null,"",null,null,null,null,null,""]
[null,null,null,null,null,null,"",null,null,null,null,null,""]
[null,null,null,null,null,null,"",null,null,null,null,null,""]
[null,null,null,null,null,null,"",null,null,null,null,null,""]
[null,null,null,null,null,null,"",null,null,null,null,null,""]
[null,null,null,null,null,null,"",null,null,null,null,null,""]
[null,null,null,null,null,null,"",null,null,null,null,null,""]
[null,null,null,null,null,null,"",null,null,null,null,null,""]
[null,null,null,null,null,null,"",null,null,null,null,null,""]
[null,null,null,null,null,null,"",null,null,null,null,null,""]
[null,null,null,null,null,null,"",null,null,null,null,null,""]
[null,null,null,null,null,null,"",null,null,null,null,null,""]
[null,null,null,null,null,null,"",null,null,null,null,null,""]
[null,null,null,null,null,null,"",null,null,null,null,null,""]
[null,null,null,null,null,null,"",null,null,null,null,null,""]
[null,null,null,null,null,null,"",null,null,null,null,null,""]
[null,null,null,null,null,null,"",null,null,null,null,null,""]
[null,null,null,null,null,null,"",null,null,null,null,null,""]
[null,null,null,null,null,null,"",null,null,null,null,null,""]
[null,null,null,null,null,null,"",null,null,null,null,null,""]
[null,null,null,null,null,null,"",null,null,null,null,null,""]
[null,null,null,null,null,null,"",null,null,null,null,null,""]
[null,null,null,null,null,null,"",null,null,null,null,null,""]
[null,null,null,null,null,null,"",null,null,null,null,null,""]
[null,null,null,null,null,null,"",null,null,null,null,null,""]
[null,null,null,null,null,null,"",null,null,null,null,null,""]
[null,null,null,null,null,null,"",null,null,null,null,null,""]
[null,null,null,null,null,null,"",null,null,null,null,null,""]
[null,null,null,null,null,null,"",null,null,null,null,null,""]
[null,null,null,null,null,null,"",null,null,null,null,null,""]
[null,null,null,null,null,null,"",null,null,null,null,null,""]
[null,null,null,null,null,null,"",null,null,null,null,null,""]
[null,null,null,null,null,null,"",null,null,null,null,null,""]
[null,null,null,null,null,null,"",null,null,null,null,null,""]
[null,null,null,null,null,null,"",null,null,null,null,null,""]
[null,null,null,null,null,null,"",null,null,null,null,null,""]
[null,null,null,null,null,null,"",null,null,null,null,null,""]
[null,null,null,null,null,null,"",null,null,null,null,null,""]
[null,null,null,null,null,null,"",null,null,null,null,null,""]
[null,null,null,null,null,null,"",null,null,null,null,null,""]
[null,null,null,null,null,null,"",null,null,null,null,null,""]
[null,null,null,null,null,null,"",null,null,null,null,null,""]
[null,null,null,null,null,null,"",null,null,null,null,null,""]
[null,null,null,null,null,null,"",null,null,null,null,null,""]
[null,null,null,null,null,null,"",null,null,null,null,null,""]
[null,null,null,null,null,null,"",null,null,null,null,null,""]
[null,null,null,null,null,null,"",null,null,null,null,null,""]
[null,null,null,null,null,null,{"$f":"IF(M710<>\"\",IF(COUNTIF($M$5:$M$54,M710)>1,\"●\",\"\"),\"\")","v":""},null,null,null,null,null,{"$f":"A710&B710&C710&D710&F710","v":""}]
[null,null,null,null,null,null,"",null,null,null,null,null,""]
[null,null,null,null,null,null,"",null,null,null,null,null,""]
[null,null,null,null,null,null,"",null,null,null,null,null,""]
[null,null,null,null,null,null,"",null,null,null,null,null,""]
[null,null,null,null,null,null,"",null,null,null,null,null,""]
[null,null,null,null,null,null,"",null,null,null,null,null,""]
[null,null,null,null,null,null,"",null,null,null,null,null,""]
[null,null,null,null,null,null,"",null,null,null,null,null,""]
[null,null,null,null,null,null,"",null,null,null,null,null,""]
[null,null,null,null,null,null,"",null,null,null,null,null,""]
[null,null,null,null,null,null,"",null,null,null,null,null,""]
[null,null,null,null,null,null,"",null,null,null,null,null,""]
[null,null,null,null,null,null,"",null,null,null,null,null,""]
[null,null,null,null,null,null,"",null,null,null,null,null,""]
[null,null,null,null,null,null,"",null,null,null,null,null,""]
[null,null,null,null,null,null,"",null,null,null,null,null,""]
[null,null,null,null,null,null,"",null,null,null,null,null,""]
[null,null,null,null,null,null,"",null,null,null,null,null,""]
[null,null,null,null,null,null,"",null,null,null,null,null,""]
[null,null,null,null,null,null,"",null,null,null,null,null,""]
[null,null,null,null,null,null,"",null,null,null,null,null,""]
[null,null,null,null,null,null,"",null,null,null,null,null,""]
[null,null,null,null,null,null,"",null,null,null,null,null,""]
[null,null,null,null,null,null,"",null,null,null,null,null,""]
[null,null,null,null,null,null,"",null,null,null,null,null,""]
[null,null,null,null,null,null,"",null,null,null,null,null,""]
[null,null,null,null,null,null,"",null,null,null,null,null,""]
[null,null,null,null,null,null,"",null,null,null,null,null,""]
[null,null,null,null,null,null,"",null,null,null,null,null,""]
[null,null,null,null,null,null,"",null,null,null,null,null,""]
[null,null,null,null,null,null,"",null,null,null,null,null,""]
[null,null,null,null,null,null,"",null,null,null,null,null,""]
[null,null,null,null,null,null,"",null,null,null,null,null,""]
[null,null,null,null,null,null,"",null,null,null,null,null,""]
[null,null,null,null,null,null,"",null,null,null,null,null,""]
[null,null,null,null,null,null,"",null,null,null,null,null,""]
[null,null,null,null,null,null,"",null,null,null,null,null,""]
[null,null,null,null,null,null,"",null,null,null,null,null,""]
[null,null,null,null,null,null,"",null,null,null,null,null,""]
[null,null,null,null,null,null,"",null,null,null,null,null,""]
[null,null,null,null,null,null,"",null,null,null,null,null,""]
[null,null,null,null,null,null,"",null,null,null,null,null,""]
[null,null,null,null,null,null,"",null,null,null,null,null,""]
[null,null,null,null,null,null,"",null,null,null,null,null,""]
[null,null,null,null,null,null,"",null,null,null,null,null,""]
[null,null,null,null,null,null,"",null,null,null,null,null,""]
[null,null,null,null,null,null,"",null,null,null,null,null,""]
[null,null,null,null,null,null,"",null,null,null,null,null,""]
[null,null,null,null,null,null,"",null,null,null,null,null,""]
[null,null,null,null,null,null,"",null,null,null,null,null,""]
[null,null,null,null,null,null,"",null,null,null,null,null,""]
[null,null,null,null,null,null,"",null,null,null,null,null,""]
[null,null,null,null,null,null,"",null,null,null,null,null,""]
[null,null,null,null,null,null,"",null,null,null,null,null,""]
[null,null,null,null,null,null,"",null,null,null,null,null,""]
[null,null,null,null,null,null,"",null,null,null,null,null,""]
[null,null,null,null,null,null,"",null,null,null,null,null,""]
[null,null,null,null,null,null,"",null,null,null,null,null,""]
[null,null,null,null,null,null,"",null,null,null,null,null,""]
[null,null,null,null,null,null,"",null,null,null,null,null,""]
[null,null,null,null,null,null,"",null,null,null,null,null,""]
[null,null,null,null,null,null,"",null,null,null,null,null,""]
[null,null,null,null,null,null,"",null,null,null,null,null,""]
[null,null,null,null,null,null,{"$f":"IF(M774<>\"\",IF(COUNTIF($M$5:$M$54,M774)>1,\"●\",\"\"),\"\")","v":""},null,null,null,null,null,{"$f":"A774&B774&C774&D774&F774","v":""}]
[null,null,null,null,null,null,"",null,null,null,null,null,""]
[null,null,null,null,null,null,"",null,null,null,null,null,""]
[null,null,null,null,null,null,"",null,null,null,null,null,""]
[null,null,null,null,null,null,"",null,null,null,null,null,""]
[null,null,null,null,null,null,"",null,null,null,null,null,""]
[null,null,null,null,null,null,"",null,null,null,null,null,""]
[null,null,null,null,null,null,"",null,null,null,null,null,""]
[null,null,null,null,null,null,"",null,null,null,null,null,""]
[null,null,null,null,null,null,"",null,null,null,null,null,""]
[null,null,null,null,null,null,"",null,null,null,null,null,""]
[null,null,null,null,null,null,"",null,null,null,null,null,""]
[null,null,null,null,null,null,"",null,null,null,null,null,""]
[null,null,null,null,null,null,"",null,null,null,null,null,""]
[null,null,null,null,null,null,"",null,null,null,null,null,""]
[null,null,null,null,null,null,"",null,null,null,null,null,""]
[null,null,null,null,null,null,"",null,null,null,null,null,""]
[null,null,null,null,null,null,"",null,null,null,null,null,""]
[null,null,null,null,null,null,"",null,null,null,null,null,""]
[null,null,null,null,null,null,"",null,null,null,null,null,""]
[null,null,null,null,null,null,"",null,null,null,null,null,""]
[null,null,null,null,null,null,"",null,null,null,null,null,""]
[null,null,null,null,null,null,"",null,null,null,null,null,""]
[null,null,null,null,null,null,"",null,null,null,null,null,""]
[null,null,null,null,null,null,"",null,null,null,null,null,""]
[null,null,null,null,null,null,"",null,null,null,null,null,""]
[null,null,null,null,null,null,"",null,null,null,null,null,""]
[null,null,null,null,null,null,"",null,null,null,null,null,""]
[null,null,null,null,null,null,"",null,null,null,null,null,""]
[null,null,null,null,null,null,"",null,null,null,null,null,""]
[null,null,null,null,null,null,"",null,null,null,null,null,""]
[null,null,null,null,null,null,"",null,null,null,null,null,""]
[null,null,null,null,null,null,"",null,null,null,null,null,""]
[null,null,null,null,null,null,"",null,null,null,null,null,""]
[null,null,null,null,null,null,"",null,null,null,null,null,""]
[null,null,null,null,null,null,"",null,null,null,null,null,""]
[null,null,null,null,null,null,"",null,null,null,null,null,""]
[null,null,null,null,null,null,"",null,null,null,null,null,""]
[null,null,null,null,null,null,"",null,null,null,null,null,""]
[null,null,null,null,null,null,"",null,null,null,null,null,""]
[null,null,null,null,null,null,"",null,null,null,null,null,""]
[null,null,null,null,null,null,"",null,null,null,null,null,""]
[null,null,null,null,null,null,"",null,null,null,null,null,""]
[null,null,null,null,null,null,"",null,null,null,null,null,""]
[null,null,null,null,null,null,"",null,null,null,null,null,""]
[null,null,null,null,null,null,"",null,null,null,null,null,""]
[null,null,null,null,null,null,"",null,null,null,null,null,""]
[null,null,null,null,null,null,"",null,null,null,null,null,""]
[null,null,null,null,null,null,"",null,null,null,null,null,""]
[null,null,null,null,null,null,"",null,null,null,null,null,""]
[null,null,null,null,null,null,"",null,null,null,null,null,""]
[null,null,null,null,null,null,"",null,null,null,null,null,""]
[null,null,null,null,null,null,"",null,null,null,null,null,""]
[null,null,null,null,null,null,"",null,null,null,null,null,""]
[null,null,null,null,null,null,"",null,null,null,null,null,""]
[null,null,null,null,null,null,"",null,null,null,null,null,""]
[null,null,null,null,null,null,"",null,null,null,null,null,""]
[null,null,null,null,null,null,"",null,null,null,null,null,""]
[null,null,null,null,null,null,"",null,null,null,null,null,""]
[null,null,null,null,null,null,"",null,null,null,null,null,""]
[null,null,null,null,null,null,"",null,null,null,null,null,""]
[null,null,null,null,null,null,"",null,null,null,null,null,""]
[null,null,null,null,null,null,"",null,null,null,null,null,""]
[null,null,null,null,null,null,"",null,null,null,null,null,""]
[null,null,null,null,null,null,{"$f":"IF(M838<>\"\",IF(COUNTIF($M$5:$M$54,M838)>1,\"●\",\"\"),\"\")","v":""},null,null,null,null,null,{"$f":"A838&B838&C838&D838&F838","v":""}]
[null,null,null,null,null,null,"",null,null,null,null,null,""]
[null,null,null,null,null,null,"",null,null,null,null,null,""]
[null,null,null,null,null,null,"",null,null,null,null,null,""]
[null,null,null,null,null,null,"",null,null,null,null,null,""]
[null,null,null,null,null,null,"",null,null,null,null,null,""]
[null,null,null,null,null,null,"",null,null,null,null,null,""]
[null,null,null,null,null,null,"",null,null,null,null,null,""]
[null,null,null,null,null,null,"",null,null,null,null,null,""]
[null,null,null,null,null,null,"",null,null,null,null,null,""]
[null,null,null,null,null,null,"",null,null,null,null,null,""]
[null,null,null,null,null,null,"",null,null,null,null,null,""]
[null,null,null,null,null,null,"",null,null,null,null,null,""]
[null,null,null,null,null,null,"",null,null,null,null,null,""]
[null,null,null,null,null,null,"",null,null,null,null,null,""]
[null,null,null,null,null,null,"",null,null,null,null,null,""]
[null,null,null,null,null,null,"",null,null,null,null,null,""]
[null,null,null,null,null,null,"",null,null,null,null,null,""]
[null,null,null,null,null,null,"",null,null,null,null,null,""]
[null,null,null,null,null,null,"",null,null,null,null,null,""]
[null,null,null,null,null,null,"",null,null,null,null,null,""]
[null,null,null,null,null,null,"",null,null,null,null,null,""]
[null,null,null,null,null,null,"",null,null,null,null,null,""]
[null,null,null,null,null,null,"",null,null,null,null,null,""]
[null,null,null,null,null,null,"",null,null,null,null,null,""]
[null,null,null,null,null,null,"",null,null,null,null,null,""]
[null,null,null,null,null,null,"",null,null,null,null,null,""]
[null,null,null,null,null,null,"",null,null,null,null,null,""]
[null,null,null,null,null,null,"",null,null,null,null,null,""]
[null,null,null,null,null,null,"",null,null,null,null,null,""]
[null,null,null,null,null,null,"",null,null,null,null,null,""]
[null,null,null,null,null,null,"",null,null,null,null,null,""]
[null,null,null,null,null,null,"",null,null,null,null,null,""]
[null,null,null,null,null,null,"",null,null,null,null,null,""]
[null,null,null,null,null,null,"",null,null,null,null,null,""]
[null,null,null,null,null,null,"",null,null,null,null,null,""]
[null,null,null,null,null,null,"",null,null,null,null,null,""]
[null,null,null,null,null,null,"",null,null,null,null,null,""]
[null,null,null,null,null,null,"",null,null,null,null,null,""]
[null,null,null,null,null,null,"",null,null,null,null,null,""]
[null,null,null,null,null,null,"",null,null,null,null,null,""]
[null,null,null,null,null,null,"",null,null,null,null,null,""]
[null,null,null,null,null,null,"",null,null,null,null,null,""]
[null,null,null,null,null,null,"",null,null,null,null,null,""]
[null,null,null,null,null,null,"",null,null,null,null,null,""]
[null,null,null,null,null,null,"",null,null,null,null,null,""]
[null,null,null,null,null,null,"",null,null,null,null,null,""]
[null,null,null,null,null,null,"",null,null,null,null,null,""]
[null,null,null,null,null,null,"",null,null,null,null,null,""]
[null,null,null,null,null,null,"",null,null,null,null,null,""]
[null,null,null,null,null,null,"",null,null,null,null,null,""]
[null,null,null,null,null,null,"",null,null,null,null,null,""]
[null,null,null,null,null,null,"",null,null,null,null,null,""]
[null,null,null,null,null,null,"",null,null,null,null,null,""]
[null,null,null,null,null,null,"",null,null,null,null,null,""]
[null,null,null,null,null,null,"",null,null,null,null,null,""]
[null,null,null,null,null,null,"",null,null,null,null,null,""]
[null,null,null,null,null,null,"",null,null,null,null,null,""]
[null,null,null,null,null,null,"",null,null,null,null,null,""]
[null,null,null,null,null,null,"",null,null,null,null,null,""]
[null,null,null,null,null,null,"",null,null,null,null,null,""]
[null,null,null,null,null,null,"",null,null,null,null,null,""]
[null,null,null,null,null,null,"",null,null,null,null,null,""]
[null,null,null,null,null,null,"",null,null,null,null,null,""]
[null,null,null,null,null,null,{"$f":"IF(M902<>\"\",IF(COUNTIF($M$5:$M$54,M902)>1,\"●\",\"\"),\"\")","v":""},null,null,null,null,null,{"$f":"A902&B902&C902&D902&F902","v":""}]
[null,null,null,null,null,null,"",null,null,null,null,null,""]
[null,null,null,null,null,null,"",null,null,null,null,null,""]
[null,null,null,null,null,null,"",null,null,null,null,null,""]
[null,null,null,null,null,null,"",null,null,null,null,null,""]
[null,null,null,null,null,null,"",null,null,null,null,null,""]
[null,null,null,null,null,null,"",null,null,null,null,null,""]
[null,null,null,null,null,null,"",null,null,null,null,null,""]
[null,null,null,null,null,null,"",null,null,null,null,null,""]
[null,null,null,null,null,null,"",null,null,null,null,null,""]
[null,null,null,null,null,null,"",null,null,null,null,null,""]
[null,null,null,null,null,null,"",null,null,null,null,null,""]
[null,null,null,null,null,null,"",null,null,null,null,null,""]
[null,null,null,null,null,null,"",null,null,null,null,null,""]
[null,null,null,null,null,null,"",null,null,null,null,null,""]
[null,null,null,null,null,null,"",null,null,null,null,null,""]
[null,null,null,null,null,null,"",null,null,null,null,null,""]
[null,null,null,null,null,null,"",null,null,null,null,null,""]
[null,null,null,null,null,null,"",null,null,null,null,null,""]
[null,null,null,null,null,null,"",null,null,null,null,null,""]
[null,null,null,null,null,null,"",null,null,null,null,null,""]
[null,null,null,null,null,null,"",null,null,null,null,null,""]
[null,null,null,null,null,null,"",null,null,null,null,null,""]
[null,null,null,null,null,null,"",null,null,null,null,null,""]
[null,null,null,null,null,null,"",null,null,null,null,null,""]
[null,null,null,null,null,null,"",null,null,null,null,null,""]
[null,null,null,null,null,null,"",null,null,null,null,null,""]
[null,null,null,null,null,null,"",null,null,null,null,null,""]
[null,null,null,null,null,null,"",null,null,null,null,null,""]
[null,null,null,null,null,null,"",null,null,null,null,null,""]
[null,null,null,null,null,null,"",null,null,null,null,null,""]
[null,null,null,null,null,null,"",null,null,null,null,null,""]
[null,null,null,null,null,null,"",null,null,null,null,null,""]
[null,null,null,null,null,null,"",null,null,null,null,null,""]
[null,null,null,null,null,null,"",null,null,null,null,null,""]
[null,null,null,null,null,null,"",null,null,null,null,null,""]
[null,null,null,null,null,null,"",null,null,null,null,null,""]
[null,null,null,null,null,null,"",null,null,null,null,null,""]
[null,null,null,null,null,null,"",null,null,null,null,null,""]
[null,null,null,null,null,null,"",null,null,null,null,null,""]
[null,null,null,null,null,null,"",null,null,null,null,null,""]
[null,null,null,null,null,null,"",null,null,null,null,null,""]
[null,null,null,null,null,null,"",null,null,null,null,null,""]
[null,null,null,null,null,null,"",null,null,null,null,null,""]
[null,null,null,null,null,null,"",null,null,null,null,null,""]
[null,null,null,null,null,null,"",null,null,null,null,null,""]
[null,null,null,null,null,null,"",null,null,null,null,null,""]
[null,null,null,null,null,null,"",null,null,null,null,null,""]
[null,null,null,null,null,null,"",null,null,null,null,null,""]
[null,null,null,null,null,null,"",null,null,null,null,null,""]
[null,null,null,null,null,null,"",null,null,null,null,null,""]
[null,null,null,null,null,null,"",null,null,null,null,null,""]
[null,null,null,null,null,null,"",null,null,null,null,null,""]
[null,null,null,null,null,null,"",null,null,null,null,null,""]
[null,null,null,null,null,null,"",null,null,null,null,null,""]
[null,null,null,null,null,null,"",null,null,null,null,null,""]
[null,null,null,null,null,null,"",null,null,null,null,null,""]
[null,null,null,null,null,null,"",null,null,null,null,null,""]
[null,null,null,null,null,null,"",null,null,null,null,null,""]
[null,null,null,null,null,null,"",null,null,null,null,null,""]
[null,null,null,null,null,null,"",null,null,null,null,null,""]
[null,null,null,null,null,null,"",null,null,null,null,null,""]
[null,null,null,null,null,null,"",null,null,null,null,null,""]
[null,null,null,null,null,null,"",null,null,null,null,null,""]
[null,null,null,null,null,null,{"$f":"IF(M966<>\"\",IF(COUNTIF($M$5:$M$54,M966)>1,\"●\",\"\"),\"\")","v":""},null,null,null,null,null,{"$f":"A966&B966&C966&D966&F966","v":""}]
[null,null,null,null,null,null,"",null,null,null,null,null,""]
[null,null,null,null,null,null,"",null,null,null,null,null,""]
[null,null,null,null,null,null,"",null,null,null,null,null,""]
[null,null,null,null,null,null,"",null,null,null,null,null,""]
[null,null,null,null,null,null,"",null,null,null,null,null,""]
[null,null,null,null,null,null,"",null,null,null,null,null,""]
[null,null,null,null,null,null,"",null,null,null,null,null,""]
[null,null,null,null,null,null,"",null,null,null,null,null,""]
[null,null,null,null,null,null,"",null,null,null,null,null,""]
[null,null,null,null,null,null,"",null,null,null,null,null,""]
[null,null,null,null,null,null,"",null,null,null,null,null,""]
[null,null,null,null,null,null,"",null,null,null,null,null,""]
[null,null,null,null,null,null,"",null,null,null,null,null,""]
[null,null,null,null,null,null,"",null,null,null,null,null,""]
[null,null,null,null,null,null,"",null,null,null,null,null,""]
[null,null,null,null,null,null,"",null,null,null,null,null,""]
[null,null,null,null,null,null,"",null,null,null,null,null,""]
[null,null,null,null,null,null,"",null,null,null,null,null,""]
[null,null,null,null,null,null,"",null,null,null,null,null,""]
[null,null,null,null,null,null,"",null,null,null,null,null,""]
[null,null,null,null,null,null,"",null,null,null,null,null,""]
[null,null,null,null,null,null,"",null,null,null,null,null,""]
[null,null,null,null,null,null,"",null,null,null,null,null,""]
[null,null,null,null,null,null,"",null,null,null,null,null,""]
[null,null,null,null,null,null,"",null,null,null,null,null,""]
[null,null,null,null,null,null,"",null,null,null,null,null,""]
[null,null,null,null,null,null,"",null,null,null,null,null,""]
[null,null,null,null,null,null,"",null,null,null,null,null,""]
[null,null,null,null,null,null,"",null,null,null,null,null,""]
[null,null,null,null,null,null,"",null,null,null,null,null,""]
[null,null,null,null,null,null,"",null,null,null,null,null,""]
[null,null,null,null,null,null,"",null,null,null,null,null,""]
[null,null,null,null,null,null,"",null,null,null,null,null,""]
[null,null,null,null,null,null,"",null,null,null,null,null,""]
[null,null,null,null,null,null,"",null,null,null,null,null,""]
[null,null,null,null,null,null,"",null,null,null,null,null,""]
[null,null,null,null,null,null,"",null,null,null,null,null,""]
[null,null,null,null,null,null,"",null,null,null,null,null,""]
[null,null,null,null,null,null,"",null,null,null,null,null,""]
[null,null,null,null,null,null,"",null,null,null,null,null,""]
[null,null,null,null,null,null,"",null,null,null,null,null,""]
[null,null,null,null,null,null,"",null,null,null,null,null,""]
[null,null,null,null,null,null,"",null,null,null,null,null,""]
[null,null,null,null,null,null,"",null,null,null,null,null,""]
[null,null,null,null,null,null,"",null,null,null,null,null,""]
[null,null,null,null,null,null,"",null,null,null,null,null,""]
[null,null,null,null,null,null,"",null,null,null,null,null,""]
[null,null,null,null,null,null,"",null,null,null,null,null,""]
[null,null,null,null,null,null,"",null,null,null,null,null,""]
[null,null,null,null,null,null,"",null,null,null,null,null,""]
[null,null,null,null,null,null,"",null,null,null,null,null,""]
[null,null,null,null,null,null,"",null,null,null,null,null,""]
[null,null,null,null,null,null,"",null,null,null,null,null,""]
[null,null,null,null,null,null,"",null,null,null,null,null,""]
[null,null,null,null,null,null,"",null,null,null,null,null,""]
[null,null,null,null,null,null,"",null,null,null,null,null,""]
[null,null,null,null,null,null,"",null,null,null,null,null,""]
[null,null,null,null,null,null,"",null,null,null,null,null,""]
[null,null,null,null,null,null,"",null,null,null,null,null,""]
[null,null,null,null,null,null,"",null,null,null,null,null,""]
[null,null,null,null,null,null,"",null,null,null,null,null,""]
[null,null,null,null,null,null,"",null,null,null,null,null,""]
[null,null,null,null,null,null,"",null,null,null,null,null,""]
[null,null,null,null,null,null,{"$f":"IF(M1030<>\"\",IF(COUNTIF($M$5:$M$54,M1030)>1,\"●\",\"\"),\"\")","v":""},null,null,null,null,null,{"$f":"A1030&B1030&C1030&D1030&F1030","v":""}]
[null,null,null,null,null,null,"",null,null,null,null,null,""]
[null,null,null,null,null,null,"",null,null,null,null,null,""]
[null,null,null,null,null,null,"",null,null,null,null,null,""]
[null,null,null,null,null,null,"",null,null,null,null,null,""]
[null,null,null,null,null,null,"",null,null,null,null,null,""]
[null,null,null,null,null,null,"",null,null,null,null,null,""]
[null,null,null,null,null,null,"",null,null,null,null,null,""]
[null,null,null,null,null,null,"",null,null,null,null,null,""]
[null,null,null,null,null,null,"",null,null,null,null,null,""]
[null,null,null,null,null,null,"",null,null,null,null,null,""]
[null,null,null,null,null,null,"",null,null,null,null,null,""]
[null,null,null,null,null,null,"",null,null,null,null,null,""]
[null,null,null,null,null,null,"",null,null,null,null,null,""]
[null,null,null,null,null,null,"",null,null,null,null,null,""]
[null,null,null,null,null,null,"",null,null,null,null,null,""]
[null,null,null,null,null,null,"",null,null,null,null,null,""]
[null,null,null,null,null,null,"",null,null,null,null,null,""]
[null,null,null,null,null,null,"",null,null,null,null,null,""]
[null,null,null,null,null,null,"",null,null,null,null,null,""]
[null,null,null,null,null,null,"",null,null,null,null,null,""]
[null,null,null,null,null,null,"",null,null,null,null,null,""]
[null,null,null,null,null,null,"",null,null,null,null,null,""]
[null,null,null,null,null,null,"",null,null,null,null,null,""]
[null,null,null,null,null,null,"",null,null,null,null,null,""]
[null,null,null,null,null,null,"",null,null,null,null,null,""]
[null,null,null,null,null,null,"",null,null,null,null,null,""]
[null,null,null,null,null,null,"",null,null,null,null,null,""]
[null,null,null,null,null,null,"",null,null,null,null,null,""]
[null,null,null,null,null,null,"",null,null,null,null,null,""]
[null,null,null,null,null,null,"",null,null,null,null,null,""]
[null,null,null,null,null,null,"",null,null,null,null,null,""]
[null,null,null,null,null,null,"",null,null,null,null,null,""]
[null,null,null,null,null,null,"",null,null,null,null,null,""]
[null,null,null,null,null,null,"",null,null,null,null,null,""]
[null,null,null,null,null,null,"",null,null,null,null,null,""]
[null,null,null,null,null,null,"",null,null,null,null,null,""]
[null,null,null,null,null,null,"",null,null,null,null,null,""]
[null,null,null,null,null,null,"",null,null,null,null,null,""]
[null,null,null,null,null,null,"",null,null,null,null,null,""]
[null,null,null,null,null,null,"",null,null,null,null,null,""]
[null,null,null,null,null,null,"",null,null,null,null,null,""]
[null,null,null,null,null,null,"",null,null,null,null,null,""]
[null,null,null,null,null,null,"",null,null,null,null,null,""]
[null,null,null,null,null,null,"",null,null,null,null,null,""]
[null,null,null,null,null,null,"",null,null,null,null,null,""]
[null,null,null,null,null,null,"",null,null,null,null,null,""]
[null,null,null,null,null,null,"",null,null,null,null,null,""]
[null,null,null,null,null,null,"",null,null,null,null,null,""]
[null,null,null,null,null,null,"",null,null,null,null,null,""]
[null,null,null,null,null,null,"",null,null,null,null,null,""]
[null,null,null,null,null,null,"",null,null,null,null,null,""]
[null,null,null,null,null,null,"",null,null,null,null,null,""]
[null,null,null,null,null,null,"",null,null,null,null,null,""]
[null,null,null,null,null,null,"",null,null,null,null,null,""]
[null,null,null,null,null,null,"",null,null,null,null,null,""]
[null,null,null,null,null,null,"",null,null,null,null,null,""]
[null,null,null,null,null,null,"",null,null,null,null,null,""]
[null,null,null,null,null,null,"",null,null,null,null,null,""]
[null,null,null,null,null,null,"",null,null,null,null,null,""]
[null,null,null,null,null,null,"",null,null,null,null,null,""]
[null,null,null,null,null,null,"",null,null,null,null,null,""]
[null,null,null,null,null,null,"",null,null,null,null,null,""]
[null,null,null,null,null,null,"",null,null,null,null,null,""]
[null,null,null,null,null,null,{"$f":"IF(M1094<>\"\",IF(COUNTIF($M$5:$M$54,M1094)>1,\"●\",\"\"),\"\")","v":""},null,null,null,null,null,{"$f":"A1094&B1094&C1094&D1094&F1094","v":""}]
[null,null,null,null,null,null,"",null,null,null,null,null,""]
[null,null,null,null,null,null,"",null,null,null,null,null,""]
[null,null,null,null,null,null,"",null,null,null,null,null,""]
[null,null,null,null,null,null,"",null,null,null,null,null,""]
[null,null,null,null,null,null,"",null,null,null,null,null,""]
[null,null,null,null,null,null,"",null,null,null,null,null,""]
[null,null,null,null,null,null,"",null,null,null,null,null,""]
[null,null,null,null,null,null,"",null,null,null,null,null,""]
[null,null,null,null,null,null,"",null,null,null,null,null,""]
[null,null,null,null,null,null,"",null,null,null,null,null,""]

{"sheet":"ドッジラリー","index":4,"n_rows":54,"n_cols":13,"rows_kept":54,"cut":false,"hidden":false,"merged":[[0,0,0,5],[2,0,2,5]]}
["目指せ！やまなしチャンピオン！結果入力表"]
[]
["ドッジラリー",null,null,null,null,null,"重複チェック"]
["学年","組","学校名","チーム名","記録","実施日"]
[null,null,null,null,null,null,{"$f":"IF(M5<>\"\",IF(COUNTIF($M$5:$M$54,M5)>1,\"●\",\"\"),\"\")","v":""},null,null,null,null,null,{"$f":"A5&B5&C5&D5&F5","v":""}]
[null,null,null,null,null,null,{"$f":"IF(M6<>\"\",IF(COUNTIF($M$5:$M$54,M6)>1,\"●\",\"\"),\"\")","v":""},null,null,null,null,null,{"$f":"A6&B6&C6&D6&F6","v":""}]
[null,null,null,null,null,null,"",null,null,null,null,null,""]
[null,null,null,null,null,null,"",null,null,null,null,null,""]
[null,null,null,null,null,null,"",null,null,null,null,null,""]
[null,null,null,null,null,null,"",null,null,null,null,null,""]
[null,null,null,null,null,null,"",null,null,null,null,null,""]
[null,null,null,null,null,null,"",null,null,null,null,null,""]
[null,null,null,null,null,null,"",null,null,null,null,null,""]
[null,null,null,null,null,null,"",null,null,null,null,null,""]
[null,null,null,null,null,null,"",null,null,null,null,null,""]
[null,null,null,null,null,null,"",null,null,null,null,null,""]
[null,null,null,null,null,null,"",null,null,null,null,null,""]
[null,null,null,null,null,null,"",null,null,null,null,null,""]
[null,null,null,null,null,null,"",null,null,null,null,null,""]
[null,null,null,null,null,null,"",null,null,null,null,null,""]
[null,null,null,null,null,null,"",null,null,null,null,null,""]
[null,null,null,null,null,null,"",null,null,null,null,null,""]
[null,null,null,null,null,null,"",null,null,null,null,null,""]
[null,null,null,null,null,null,"",null,null,null,null,null,""]
[null,null,null,null,null,null,"",null,null,null,null,null,""]
[null,null,null,null,null,null,"",null,null,null,null,null,""]
[null,null,null,null,null,null,"",null,null,null,null,null,""]
[null,null,null,null,null,null,"",null,null,null,null,null,""]
[null,null,null,null,null,null,"",null,null,null,null,null,""]
[null,null,null,null,null,null,"",null,null,null,null,null,""]
[null,null,null,null,null,null,"",null,null,null,null,null,""]
[null,null,null,null,null,null,"",null,null,null,null,null,""]
[null,null,null,null,null,null,"",null,null,null,null,null,""]
[null,null,null,null,null,null,"",null,null,null,null,null,""]
[null,null,null,null,null,null,"",null,null,null,null,null,""]
[null,null,null,null,null,null,"",null,null,null,null,null,""]
[null,null,null,null,null,null,"",null,null,null,null,null,""]
[null,null,null,null,null,null,"",null,null,null,null,null,""]
[null,null,null,null,null,null,"",null,null,null,null,null,""]
[null,null,null,null,null,null,"",null,null,null,null,null,""]
[null,null,null,null,null,null,"",null,null,null,null,null,""]
[null,null,null,null,null,null,"",null,null,null,null,null,""]
[null,null,null,null,null,null,"",null,null,null,null,null,""]
[null,null,null,null,null,null,"",null,null,null,null,null,""]
[null,null,null,null,null,null,"",null,null,null,null,null,""]
[null,null,null,null,null,null,"",null,null,null,null,null,""]
[null,null,null,null,null,null,"",null,null,null,null,null,""]
[null,null,null,null,null,null,"",null,null,null,null,null,""]
[null,null,null,null,null,null,"",null,null,null,null,null,""]
[null,null,null,null,null,null,"",null,null,null,null,null,""]
[null,null,null,null,null,null,"",null,null,null,null,null,""]
[null,null,null,null,null,null,"",null,null,null,null,null,""]
[null,null,null,null,null,null,"",null,null,null,null,null,""]
[null,null,null,null,null,null,"",null,null,null,null,null,""]

{"sheet":"馬とび","index":5,"n_rows":54,"n_cols":13,"rows_kept":54,"cut":false,"hidden":false,"merged":[[0,0,0,5],[2,0,2,5]]}
["目指せ！やまなしチャンピオン！結果入力表"]
[]
["馬とび",null,null,null,null,null,"重複チェック"]
["学年","組","学校名","チーム名","記録","実施日"]
[null,null,null,null,null,null,{"$f":"IF(M5<>\"\",IF(COUNTIF($M$5:$M$54,M5)>1,\"●\",\"\"),\"\")","v":""},null,null,null,null,null,{"$f":"A5&B5&C5&D5&F5","v":""}]
[null,null,null,null,null,null,{"$f":"IF(M6<>\"\",IF(COUNTIF($M$5:$M$54,M6)>1,\"●\",\"\"),\"\")","v":""},null,null,null,null,null,{"$f":"A6&B6&C6&D6&F6","v":""}]
[null,null,null,null,null,null,"",null,null,null,null,null,""]
[null,null,null,null,null,null,"",null,null,null,null,null,""]
[null,null,null,null,null,null,"",null,null,null,null,null,""]
[null,null,null,null,null,null,"",null,null,null,null,null,""]
[null,null,null,null,null,null,"",null,null,null,null,null,""]
[null,null,null,null,null,null,"",null,null,null,null,null,""]
[null,null,null,null,null,null,"",null,null,null,null,null,""]
[null,null,null,null,null,null,"",null,null,null,null,null,""]
[null,null,null,null,null,null,"",null,null,null,null,null,""]
[null,null,null,null,null,null,"",null,null,null,null,null,""]
[null,null,null,null,null,null,"",null,null,null,null,null,""]
[null,null,null,null,null,null,"",null,null,null,null,null,""]
[null,null,null,null,null,null,"",null,null,null,null,null,""]
[null,null,null,null,null,null,"",null,null,null,null,null,""]
[null,null,null,null,null,null,"",null,null,null,null,null,""]
[null,null,null,null,null,null,"",null,null,null,null,null,""]
[null,null,null,null,null,null,"",null,null,null,null,null,""]
[null,null,null,null,null,null,"",null,null,null,null,null,""]
[null,null,null,null,null,null,"",null,null,null,null,null,""]
[null,null,null,null,null,null,"",null,null,null,null,null,""]
[null,null,null,null,null,null,"",null,null,null,null,null,""]
[null,null,null,null,null,null,"",null,null,null,null,null,""]
[null,null,null,null,null,null,"",null,null,null,null,null,""]
[null,null,null,null,null,null,"",null,null,null,null,null,""]
[null,null,null,null,null,null,"",null,null,null,null,null,""]
[null,null,null,null,null,null,"",null,null,null,null,null,""]
[null,null,null,null,null,null,"",null,null,null,null,null,""]
[null,null,null,null,null,null,"",null,null,null,null,null,""]
[null,null,null,null,null,null,"",null,null,null,null,null,""]
[null,null,null,null,null,null,"",null,null,null,null,null,""]
[null,null,null,null,null,null,"",null,null,null,null,null,""]
[null,null,null,null,null,null,"",null,null,null,null,null,""]
[null,null,null,null,null,null,"",null,null,null,null,null,""]
[null,null,null,null,null,null,"",null,null,null,null,null,""]
[null,null,null,null,null,null,"",null,null,null,null,null,""]
[null,null,null,null,null,null,"",null,null,null,null,null,""]
[null,null,null,null,null,null,"",null,null,null,null,null,""]
[null,null,null,null,null,null,"",null,null,null,null,null,""]
[null,null,null,null,null,null,"",null,null,null,null,null,""]
[null,null,null,null,null,null,"",null,null,null,null,null,""]
[null,null,null,null,null,null,"",null,null,null,null,null,""]
[null,null,null,null,null,null,"",null,null,null,null,null,""]
[null,null,null,null,null,null,"",null,null,null,null,null,""]
[null,null,null,null,null,null,"",null,null,null,null,null,""]
[null,null,null,null,null,null,"",null,null,null,null,null,""]
[null,null,null,null,null,null,"",null,null,null,null,null,""]
[null,null,null,null,null,null,"",null,null,null,null,null,""]
[null,null,null,null,null,null,"",null,null,null,null,null,""]

{"sheet":"設定シート","index":6,"n_rows":9,"n_cols":27,"rows_kept":9,"cut":false,"hidden":false,"merged":[]}
[null,null,null,null,null,null,null,null,null,null,null,null,null,null,null,null,null,null,null,null,null,null,null,null,null,null,"学年"]
[]
[null,null,null,null,null,null,null,null,null,null,null,null,null,null,null,null,null,null,null,null,null,null,null,null,null,null,1]
[null,null,null,null,null,null,null,null,null,null,null,null,null,null,null,null,null,null,null,null,null,null,null,null,null,null,2]
[null,null,null,null,null,null,null,null,null,null,null,null,null,null,null,null,null,null,null,null,null,null,null,null,null,null,3]
[null,null,null,null,null,null,null,null,null,null,null,null,null,null,null,null,null,null,null,null,null,null,null,null,null,null,4]
[null,null,null,null,null,null,null,null,null,null,null,null,null,null,null,null,null,null,null,null,null,null,null,null,null,null,5]
[null,null,null,null,null,null,null,null,null,null,null,null,null,null,null,null,null,null,null,null,null,null,null,null,null,null,6]
[null,null,null,null,null,null,null,null,null,null,null,null,null,null,null,null,null,null,null,null,null,null,null,null,null,null,"縦割"]